Cogmind - Beta 16 @@@ ROGUE MODE // 2025.12.29 @ 20:17:39 Player: Compilatron Result: Destroyed by CE-ARS(x) with Makeshift Spear Performance ------------- Evolutions (0) 0 Regions Visited (3) 600 Robots Destroyed (24) 120 Value Destroyed (776) 776 Prototype IDs (6) 120 Alien Tech Used (0) 0 Bonus (295) 295 TOTAL SCORE: 1911 Bonus ------- Registered with UFD 300 Friendly Fire -5 Cogmind --------- Core Integrity 0/250 Matter 300/300 Energy 90/100 System Corruption 0% Temperature Cool (15) Movement Walking (125) Location -9/Scraptown Parts ------- > --- POWER (1) -------- (None) > --- PROPULSION (2) --- Improved Titanium Leg Flexi-carbon Leg > --- UTILITY (2) ------ Large Storage Unit Seismic Detector > --- WEAPON (2) ------- Subdweller Machine Gun > --- INVENTORY (15) --- Subdweller Power Source Small Storage Unit Matter Compressor (28) Subdweller Optics Improved Sensor Array Advanced Signal Interpreter Advanced Terrain Scan Processor Improved Targeting Computer A0-MCA's Component Scanner EM Pulse Gun Battle Cannon Flamer Scrap Shield Fragment (47) Peak State ------------ > --- POWER ------------ Angular Momentum Engine > --- PROPULSION ------- Improved Titanium Leg Flexi-carbon Leg > --- UTILITY ---------- Large Storage Unit Seismic Detector > --- WEAPON ----------- Subdweller Machine Gun Mining Laser > --- INVENTORY -------- Subdweller Power Source Small Storage Unit Matter Compressor Subdweller Optics Improved Sensor Array Advanced Signal Interpreter Advanced Terrain Scan Processor Improved Targeting Computer Scrap Shield A0-MCA's Component Scanner EM Pulse Gun Battle Cannon Flamer Scrap Shield Fragment [Rating: 23] Favorites ----------- Power Angular Momentum Engine Engine Angular Momentum Engine Propulsion Light Treads Treads Light Treads Leg Improved Titanium Leg Wheel Wheel Utility Large Storage Unit Device Seismic Detector Storage Large Storage Unit Protection Light Armor Plating Weapon Subdweller Machine Gun Energy Gun Medium Laser Ballistic Gun Subdweller Machine Gun Launcher Grenade Launcher Special Weapon Mining Laser Build | -11 -10 -10 -9 ------- Run | Yrd Mat Sub Scr Slots Evolved . | . . . . Power . | . . . . Propulsion . | . . . . Utility . | . . . . Weapon . | . . . . Parts Attached 23 | . 10 9 4 Power 3 | . 1 1 1 Engine 3 | . 1 1 1 Core . | . . . . Reactor . | . . . . Propulsion 8 | . 2 3 3 Treads 2 | . 2 . . Leg 3 | . . . 3 Wheel 3 | . . 3 . Hover . | . . . . Flight . | . . . . Utility 5 | . 4 1 . Device 1 | . . 1 . Storage 3 | . 3 . . Processor . | . . . . Hackware . | . . . . Protection 1 | . 1 . . Artifact . | . . . . Weapon 7 | . 3 4 . Energy Gun 2 | . 2 . . Energy Cannon . | . . . . Ballistic Gun 3 | . 1 2 . Ballistic Cannon . | . . . . Launcher 1 | . . 1 . Special Weapon 1 | . . 1 . Impact Weapon . | . . . . Slashing Weapon . | . . . . Piercing Weapon . | . . . . Special Melee Weapon . | . . . . Unidentified Prototypes . | . . . . Parts Lost 10 | . 1 7 2 Power 3 | . 1 1 1 Propulsion 2 | . . 2 . Utility . | . . . . Weapon 5 | . . 4 1 Highest Loss Streak 3 | . 1 3 2 To Critical Strikes 2 | . . 2 . Average Backups 9 | . 7 8 11 Power . | . . . 1 Propulsion . | . 2 . . Utility 5 | . 2 4 7 Weapon 2 | . 2 2 3 Tool/Special . | . . . . Unused Backups 19 | . 7 . 12 Power 2 | . 1 . 1 Propulsion 3 | . 3 . . Utility 8 | . . . 8 Weapon 6 | . 3 . 3 Tool/Special . | . . . . Average Slot Usage (%) 94 | . 98 84 98 Engine 10 | . 13 4 12 Treads 8 | . 27 2 . Leg 9 | . . . 19 Wheel 10 | . . 25 8 Device 10 | . . 13 14 Storage 14 | . 14 14 14 Protection 3 | . 12 . . Energy Gun 7 | . 28 1 . Ballistic Gun 9 | . . 12 14 Launcher 1 | . . 3 . Special Weapon 7 | . . 5 13 Peak Build Rating 23 | . 8 12 23 Average Rating 12 | . 6 8 18 On Entrance 7 | 6 6 7 12 Avg Prop Armor Cover (%) 5 | . . 5 5 Naked Turns . | . . . . Heaviest Build 39 | 11 32 33 39 Greatest Support 40 | 20 40 40 40 Greatest Overweight (x) 9 | . . 9 3 Average Overweight (x) . | . . 1 . Largest Inventory Capacity 25 | . 25 15 15 Average Capacity 14 | . 13 15 15 Most Carried 15 | . 9 13 15 Average Carried 11 | . 7 9 14 Final Capacity 15 | 8 15 15 15 Final Carried 13 | 6 8 13 13 Class Distribution -------------------- 100% | Mutant Dominant Class ---------------- Mutant | -10/Materials Mutant | -10/Subcaves Mutant | -9/Scraptown Resources | -11 -10 -10 -9 ----------- Run | Yrd Mat Sub Scr Matter Collected 670 | 200 120 293 57 Remotely . | . . . . Salvage Created 848 | . 444 404 . Parts 47 | . 27 20 . Haulers Intercepted . | . . . . Recyclers Shooed 1 | . 1 . . Parts Field Recycled . | . . . . Retrieved Matter . | . . . . Parts Self-Destructed 5 | . . 5 . Prevented . | . . . . Parts Restored . | . . . . Kills | -11 -10 -10 -9 ------- Run | Yrd Mat Sub Scr Combat Hostiles Destroyed 21 | . 11 10 . Guns 13 | . 10 3 . AOE 7 | . . 7 . Classes Destroyed 6 | . 3 3 . Watcher 3 | . 3 . . Swarmer 3 | . 3 . . Grunt 8 | . 8 . . Artisan 1 | . . 1 . Cobbler 2 | . . 2 . Subdweller 10 | . . 10 . Best Kill Streak 4 | . 4 4 . Combat Bots Only 4 | . 3 4 . Max Kills in Single Turn 2 | . 2 1 . Gunslinging 1 | . 1 . . Exploded 1 | . . 1 . Melee . | . . . . Uniques/NPCs Destroyed . | . . . . Combat | -11 -10 -10 -9 -------- Run | Yrd Mat Sub Scr Hostile Shots Fired 137 | . 68 35 34 Missed 39 | . 18 10 11 Hits 98 | . 50 25 23 Melee 2 | . . . 2 Projectile 96 | . 50 25 21 Critical Strikes 5 | . . 4 1 Damage Taken 1545 | . 560 556 429 Core 253 | . 42 130 81 Absorbed by Shields . | . . . . Regen/Repaired (Parts) 347 | . 70 . 277 Core Remaining (%) 100 | 100 . . . Volleys Fired 80 | . 36 42 2 Largest 2 | . 2 2 2 Hottest 130 | . 100 130 130 Shots Fired 131 | . 72 56 3 Gun 113 | . 72 40 1 Cannon . | . . . . Launcher 13 | . . 13 . Special 5 | . . 3 2 Kinetic 37 | . . 36 1 Thermal 71 | . 62 7 2 Explosive 13 | . . 13 . Electromagnetic 10 | . 10 . . Robot Hit Streak 15 | . 6 15 . Robot Miss Streak 3 | . 3 2 . Penetration Max . | . . . . Secondary Targets 1 | . 1 . . Max Gunslinging Chain 1 | . 1 . . Shots Hit Robots 77 | . 47 30 . Core Hits 48 | . 23 25 . Critical Kills . | . . . . Critical Parts Destroyed 1 | . . 1 . Critical Strikes 6 | . 5 1 . Burn 5 | . 5 . . Destroy 1 | . . 1 . Melee Attacks . | . . . . Impact . | . . . . Slashing . | . . . . Piercing . | . . . . Sneak Attacks . | . . . . Combat Hostiles . | . . . . Follow-up Attacks . | . . . . Damage Inflicted 1716 | . 609 1099 8 Guns 1033 | . 609 424 . Cannons . | . . . . Explosions 675 | . . 675 . Melee . | . . . . Ramming 8 | . . . 8 Kinetic 374 | . . 374 . Thermal 567 | . 517 50 . Explosive 675 | . . 675 . Electromagnetic 92 | . 92 . . Impact . | . . . . Slashing . | . . . . Piercing . | . . . . Highest Corruption . | . . . . Average Corruption . | . . . . Corruption Purged . | . . . . Corruption Blocked . | . . . . Overload Shots . | . . . . Overflow Damage 1 | . . 1 . Projectiles . | . . . . Explosions 1 | . . 1 . Melee . | . . . . Knockbacks . | . . . . Impact . | . . . . Kinetic . | . . . . Secondary . | . . . . Self-Inflicted Damage 37 | . . 37 . Shots 2 | . . 2 . Rammed . | . . . . Targets Rammed 4 | . . . 4 Kicked 4 | . . . 4 Crushed . | . . . . Highest Temperature 324 | . 324 . 45 Average Temperature 106 | . 113 . 18 Received Heat Transfer 598 | . 285 144 169 Effects 3 | . 3 . . Energy Bleed 1 | . 1 . . Interference 2 | . 2 . . Siege Activations . | . . . . Martial Activations . | . . . . Shielding Activations . | . . . . Robots Disrupted . | . . . . Combat Hostiles . | . . . . Robots Corrupted . | . . . . Combat Hostiles . | . . . . Parts Fried . | . . . . Impact Corruptions . | . . . . Robots Melted 1 | . 1 . . Combat Hostiles 1 | . 1 . . Parts Melted 7 | . 7 . . Heat Transferred 2035 | . 1887 148 . Parts Sabotaged . | . . . . Parts Stolen . | . . . . Parts Stripped . | . . . . Power Chain Reactions . | . . . . Alert | -11 -10 -10 -9 ------- Run | Yrd Mat Sub Scr Maximum Alert Level . | . . . . Low Security (%) 100 | . 100 . . Level 1 . | . . . . Level 2 . | . . . . Level 3 . | . . . . Level 4 . | . . . . Level 5 . | . . . . High Security . | . . . . Max Security . | . . . . Peak Influence 78 | . 78 . . Initial . | . . . . Average 17 | . 17 . . Influence Increases 309 | . 309 . . Destroy 0b10 Robot/C 220 | . 220 . . Destroy 0b10 Robot/NC 15 | . 15 . . Destroy Leader 56 | . 56 . . Successful Hack 3 | . 3 . . Lose Combat Pursuer 15 | . 15 . . Influence Decreases 309 | . 309 . . Time Decay 299 | . 299 . . Lost Part 10 | . 10 . . Squads Dispatched 2 | . 2 . . Investigation 1 | . 1 . . Extermination . | . . . . Reinforcement 1 | . 1 . . Assault . | . . . . Garrison . | . . . . Intercept . | . . . . Searches Triggered . | . . . . Construction Impeded . | . . . . Haulers Reinforced . | . . . . Active Scanning Responses . | . . . . Cargo Convoy Interrupts . | . . . . Stealth | -11 -10 -10 -9 --------- Run | Yrd Mat Sub Scr Distress Signals . | . . . . Communications Jammed . | . . . . Distress Signals . | . . . . Times Spotted 38 | . 18 10 10 Peak Tracking Total 14 | . 4 2 14 Tactical Retreats 1 | . 1 . . Traps | -11 -10 -10 -9 ------- Run | Yrd Mat Sub Scr Traps Triggered 1 | . 1 . . Indirectly . | . . . . Trap Hack Attempts . | . . . . Triggered . | . . . . Disarmed . | . . . . Reprogrammed . | . . . . Reused . | . . . . Traps Extracted . | . . . . Installed . | . . . . Triggered . | . . . . Machines | -11 -10 -10 -9 ---------- Run | Yrd Mat Sub Scr Machines Disabled . | . . . . Max in Single Turn . | . . . . Machines Repaired . | . . . . Machines Dismantled . | . . . . Machines Sabotaged . | . . . . Overloaded Fab Kills . | . . . . Hacking | -11 -10 -10 -9 --------- Run | Yrd Mat Sub Scr Machines Accessed 5 | . 3 . 2 Terminals 2 | . 2 . . Fabricators . | . . . . Repair Stations 1 | . 1 . . Recycling Units . | . . . . Scanalyzers . | . . . . Garrison Access . | . . . . Total Hacks 9 | . 6 . 3 Successful 5 | . 2 . 3 Failed 4 | . 4 . . Catastrophic 1 | . 1 . . Database Lockouts . | . . . . Manual 4 | . 4 . . Terminals 4 | . 4 . . Fabricators . | . . . . Repair Stations 2 | . 2 . . Recycling Units . | . . . . Scanalyzers . | . . . . Garrison Access . | . . . . Terminal Hacks 3 | . . . 3 Record 2 | . . . 2 Proto ID Catalog 1 | . . . 1 Fabricator Hacks . | . . . . Repair Station Hacks 2 | . 2 . . Scan Component 1 | . 1 . . Repair 1 | . 1 . . Recycling Unit Hacks . | . . . . Scanalyzer . | . . . . Garrison Access Hacks . | . . . . Unauthorized Hacks . | . . . . Terminals . | . . . . Fabricators . | . . . . Repair Stations . | . . . . Recycling Units . | . . . . Scanalyzers . | . . . . Garrison Access . | . . . . Data Cores Recovered . | . . . . Used . | . . . . Hacking Detections 3 | . 3 . . Full Trace Events . | . . . . Feedback Events . | . . . . Feedback Blocked . | . . . . Robot Schematics Acquired . | . . . . Robots Built . | . . . . Authchips . | . . . . Time . | . . . . Total Robot Build Rating . | . . . . Part Schematics Acquired . | . . . . Parts Built . | . . . . Authchips . | . . . . Time . | . . . . Total Part Build Rating . | . . . . Part Studies Acquired . | . . . . Parts Repaired 1 | . 1 . . Time 26 | . 26 . . Parts Recycled . | . . . . Recycled Matter . | . . . . Retrieved Matter . | . . . . Retrieved Components . | . . . . Parts Scanalyzed . | . . . . Part Schematics Acquired . | . . . . Parts Damaged . | . . . . Bothacking | -11 -10 -10 -9 ------------ Run | Yrd Mat Sub Scr Used RIF Installer . | . . . . Robots Hacked . | . . . . Non-combat . | . . . . Combat . | . . . . Robot Hacks Applied . | . . . . Relay Couplers Released . | . . . . Fabnet Peak Effective % . | . . . . Robots Rewired . | . . . . Allies Hacked . | . . . . Hacks Repelled . | . . . . Allies | -11 -10 -10 -9 -------- Run | Yrd Mat Sub Scr Total Allies . | . . . . Largest Group . | . . . . Highest-Rated Group . | . . . . Highest-Rated Ally . | . . . . Total Orders . | . . . . Ally Attacks . | . . . . Total Damage . | . . . . Kills . | . . . . Allies Corrupted . | . . . . Allies Melted . | . . . . Intel | -11 -10 -10 -9 ------- Run | Yrd Mat Sub Scr Active Infowar (turns) 3864 | . . 1441 2423 Seismic 3864 | . . 1441 2423 Robot Analysis Total . | . . . . Derelict Logs Recovered 6 | . . 2 4 Drone Launches . | . . . . Drone Recoveries . | . . . . Exploration | -11 -10 -10 -9 ------------- Run | Yrd Mat Sub Scr Turns Passed 5282 | . 1400 1459 2423 Spaces Moved 2968 | 1 501 637 1829 Core 1 | . . 1 . Treads 561 | . 501 60 . Legs 1337 | 1 . . 1336 Wheels 1069 | . . 576 493 Hover . | . . . . Flight . | . . . . Fastest Speed 90 | 120 160 90 110 Average Speed 132 | 120 160 114 130 Slowest Speed 500 | 120 160 500 200 Overloaded Moves . | . . . . Propulsion Burnouts . | . . . . Robots Hopped . | . . . . Potential Cave-ins . | . . . . Cave-ins Triggered . | . . . . Exploration Rate (%) 51 | 2 89 24 89 Regions Visited 3 Branch Regions 2 Pre-discovered Areas 3 | . . 1 2 Known Exits Taken . | . . . . Unknown Exits Taken 3 | 1 1 1 . Scrap Searched 6 | . . 2 4 Spaces Dug . | . . . . Terrain Destroyed 46 | . . 46 . Melee . | . . . . Projectile . | . . . . AOE 46 | . . 46 . Terrain Rammed . | . . . . Walls Destroyed . | . . . . Machines Disabled . | . . . . Actions | -11 -10 -10 -9 --------- Run | Yrd Mat Sub Scr Total 4191 | . 1028 1305 1858 Wait 1065 | . 457 603 5 Move 2965 | . 500 636 1829 Hop . | . . . . Pick Up 32 | . 14 12 6 Fast Attach 2 | . . . 2 Attach 10 | . 3 7 . Detach . | . . . . Swap 16 | . 9 4 3 Drop 16 | . 9 1 6 Fire 80 | . 36 42 2 Melee . | . . . . Ram . | . . . . Kick 4 | . . . 4 Crush . | . . . . Escape Stasis . | . . . . Rewire 1 | . . . 1 Trap . | . . . . Miscellaneous . | . . . . Route ------- -11/Scrapyard -10/Materials (discovered 5 exits: [*Mat x2] / [*Min x2] / [*Sub]) -10/Subcaves (discovered 2 exits: [*Mat] / *Scr) -9/Scraptown (discovered 1 exit: [*Fac]) History --------- Turn | Location | Event 1 | -11/Scrapyard | Discovered new exit (range 0) 1 | -11/Scrapyard | Entered Materials 307 | -10/Materials | Discovered new exit (range 5) 317 | -10/Materials | Build established: Mutant 860 | -10/Materials | Repaired Lgt. Armor Plating 943 | -10/Materials | Discovered new exit (range 8) 1084 | -10/Materials | Discovered new exit (range 10) 1146 | -10/Materials | Discovered new exit (range 5) 1344 | -10/Materials | Discovered new exit (range 6) 1401 | -10/Materials | Entered Subcaves 1402 | -10/Subcaves | Approached by a straggling Scientist 1408 | -10/Subcaves | Learned location of Storage (-9) 1433 | -10/Subcaves | Learned Materials stockpile data 1504 | -10/Subcaves | Disturbed a concealed Subdweller 1506 | -10/Subcaves | Disturbed a concealed Subdweller 1544 | -10/Subcaves | Lost 3 parts (2n1w) 1766 | -10/Subcaves | Core integrity fell below 50% 1788 | -10/Subcaves | Discovered new exit (range 10) 1844 | -10/Subcaves | Lost 3 parts (3w) 2860 | -10/Subcaves | Entered Scraptown 2970 | -9/Scraptown | Visited Supply Room 3018 | -9/Scraptown | Visited UFD Registry 3018 | -9/Scraptown | Registered with UFD as "Protonface" 3036 | -9/Scraptown | Visited Shadow of the Wyrm 3095 | -9/Scraptown | Scanned Subdweller tech in exchange for log data 3101 | -9/Scraptown | Learned location of Zion (-6) 3102 | -9/Scraptown | Learned location of Testing (-2) 3104 | -9/Scraptown | Learned location of 1 exit from Upper Caves 3105 | -9/Scraptown | Learned 12 Factory zone layouts 3120 | -9/Scraptown | Discovered new exit (range 11) 3152 | -9/Scraptown | Guru changed UFD alias to "Spikefunk" 3774 | -9/Scraptown | Visited Cyclists 3793 | -9/Scraptown | Entered Cyclist Reading Room 3814 | -9/Scraptown | Visited CR-KLE's Repair Center 3823 | -9/Scraptown | CR-KLE repaired 5 parts 3863 | -9/Scraptown | Visited Assassins FH 3922 | -9/Scraptown | Visited Comm Corps 4128 | -9/Scraptown | Visited Fellowship of the Rings 4338 | -9/Scraptown | Visited Research Penetration Think Tank 4369 | -9/Scraptown | Visited Curators Association 4409 | -9/Scraptown | Visited Science Guys 4455 | -9/Scraptown | Visited LU-1G1's Boring Crew 4569 | -9/Scraptown | Visited Supply Room 4594 | -9/Scraptown | Visited Scrapoid Research Area 4614 | -9/Scraptown | Visited Cartography Club 4821 | -9/Scraptown | Visited Junk Repository 4880 | -9/Scraptown | Visited A0-MCA Data Center 4888 | -9/Scraptown | Given an A- rating by A0-MCA 4896 | -9/Scraptown | Found A0-MCA's Component Scanner 4924 | -9/Scraptown | Visited Observation Area 5043 | -9/Scraptown | Delivered Scrap Shield to a Scientist 5252 | -9/Scraptown | Attacked by Scraptown defenders 5280 | -9/Scraptown | Core integrity fell below 20% 5283 | -9/Scraptown | Destroyed by CE-ARS(x) with Makeshift Spear Last Messages --------------- 05057_ Found Flail. 05057_ Found 57 Matter. 05058_ Acquired 57 matter. 05069_ SF-JKT(c): "Come one, come all! See for yourself a fine selection of the many wondrous pieces in our collection!" 05085_ Multiple signs read "I'm always busy, go away." 05143_ A sign before the barrier simply reads "NO DIGGING". 05252_ ANNOUNCEMENT: Intruder alert! Defend Scraptown! 05270_ 3G-IBP(j): "To scrap with you!" 05273_ Kicked 3G-IBP(j). 05274_ Critical hit (Burn: +50). 05274_ Kicked 3G-IBP(j). 05277_ Kicked 3G-IBP(j) out of the way. 05279_ Mining Laser destroyed. 05279_ Machine disabled. 05282_ Angular Momentum Engine destroyed. Map ----- +----------------------------------------------------+ | #"!" """#??# ]# &#!!# # #???????????????? | | #""" """"#??# # = # # ###### #######?????????? | | #""" """#??# # # #?????????? | | # "#??# # # #?????????? | | ###### ####??##### ##### ## ###########?????????? | | ###### ########### ##### ## #############???????? | | """""" """"""""""" """"" "" "## """ """ ???????? | | "## " """"" #?????? | | "## """ #?????? | | "## #?????? | | "## "#?????? | | ""#?????? | | """""""""""""""""""""""" "## """ "#?????? | | """""""""""""""""""""""" "## """"" ""#?????? | | #### ################"" "## """ "#?????? | | ??? ??????????????#"" c "##############?????? | | ??? ?????????????#"" "## //"""???????????? | | ???" ""?????????????#"" "## //]""#??????????? | | "? ????????????###"" "## ]""#??????????? | | " ??????####### #"" "## ]]]#??????????? | | "" ????? ]]]#??????????? | | "" ???? "## #??????????? | | " ? ???####### #"" "## ""==#??????????? | | "" "" ?????????###"" E "##""""==#??????????? | | "" "" ???????????#""c Ep "#########??????????? | | ? ????????????#"" @ "#??????????????????? | | ?? ?????????????#"" xb #??????????????????? | | #### ################"" x "#??????????????????? | | """""""""""""""""""""""" j "#############??????? | | """""""""""""""""""""""" j #??????? | | "## #### #####??????? | | "## # ##?????? | | "## # """ #?????? | | ## # "#" ##?????? | | E # # """ #??????? | | """""""" """"""""""" " """" ## # #??????? | | ######## ########### ###### ## #### #####??????? | | ??#" "#" # ## #??????? | | ??##"" ""## "#p #############??????? | | ???#=" "!##"" "" "&# #??????????????????? | | ???#"" ""##"" "" " # #??????????????????? | | ??#" "#"" &# #??????????????????? | | ??##"" ""##"""" ""# ############???????? | | ???#&" "]##""" """"# #???????? | | ???#"" ""##" "!""# ##???????? | | ???" """ "#""" """"# #???????? | | ??#### "!" ####""""" X """# #???????? | | ?????#"###"#??#"""""""""""# #???????? | | ?????##???##??############# ############???????? | | ########################### #####??????????????? | +----------------------------------------------------+ Best States ------------- Heat Dissipation 25 Energy Generation 18 Energy Capacity 300 Matter Stores 300 Matter Capacity 300 Sight Range 16 Terrain Scan Density 10 Armor Coverage 150 Evasion (%) 55 Recoil Reduction 2 Item Schematics ----------------- None Robot Schematics ------------------ None Fabricated ------------ Nothing Repaired ---------- Lgt. Armor Plating | 22% | -10/Materials Studied --------- None Alien Tech Used ----------------- None Achievements -------------- Longdome?! Challenges ------------ None Game ------ Seed MakeshiftRelayFocus Manual? 0 Play Time 00:31:24 Cumulative 81.4 hours Start 2025.12.29 @ 19:49:21 End 2025.12.29 @ 20:17:39 Sessions 1 Manual Loads 0 Difficulty Rogue Special Mode None Game No. 132 Rogue 108 Adventurer 20 Explorer 4 Win Type - Total 1 Types 0/0/0/1/0/0/0/0/0/0 Lore% 52 Gallery% 43 Achievement% 34 Wizard Run 0 Options --------- Layout 1 ASCII 0 Keyboard 0 Movement Numpad Keybinds 0 Fullscreen 2 Font 24/Smallcaps Map View 50x35 Zoom Use 0% Tactical HUD 1 Map Filters NONE Filters NONE Steam 1 RUN: 4e722052-b895-4b93-8808-ea21bc442f7a